[Event "Titled Tuesday Blitz April 12 Late 2022"]
[White "Stelmaszyk, Nico"]
[Black "Sailer, Mike"]
[WhiteFideId "16200462"]
[BlackFideId "2012901"]
[WhiteElo "2119"]
[BlackElo "2109"]
[Result "1-0"]
[Round "03"]
[TimeControl "180+1"]
[Date "2022.04.13"]
[WhiteClock "0:00:52"]
[BlackClock "0:00:01"]

1. e4 {[%clk 0:03:00]}  d5 {[%clk 0:02:59]} 2. exd5 {[%clk 0:02:59]}  Qxd5 {[%clk 0:02:59]} 3. Nc3 {[%clk 0:03:00]}  Qd6 {[%clk 0:02:59]} 4. Nf3 {[%clk 0:02:58]}  Nf6 {[%clk 0:02:59]} 5. Bc4 {[%clk 0:02:57]}  c6 {[%clk 0:02:59]} 6. O-O {[%clk 0:02:57]}  Bg4 {[%clk 0:02:58]} 7. h3 {[%clk 0:02:57]}  Bh5 {[%clk 0:02:58]} 8. d4 {[%clk 0:02:56]}  e6 {[%clk 0:02:57]} 9. Bg5 {[%clk 0:02:55]}  Be7 {[%clk 0:02:57]} 10. Bxf6 {[%clk 0:02:56]}  gxf6 {[%clk 0:02:55]} 11. Ne4 {[%clk 0:02:53]}  Qc7 {[%clk 0:02:54]} 12. Ng3 {[%clk 0:02:53]}  Bg6 {[%clk 0:02:51]} 13. Bd3 {[%clk 0:02:51]}  Nd7 {[%clk 0:02:49]} 14. a4 {[%clk 0:02:51]}  Rg8 {[%clk 0:02:35]} 15. Qe2 {[%clk 0:02:48]}  Nb6 {[%clk 0:02:28]} 16. c4 {[%clk 0:02:44]}  a5 {[%clk 0:02:25]} 17. b3 {[%clk 0:02:38]}  Nd7 {[%clk 0:02:15]} 18. Rad1 {[%clk 0:02:36]}  Bxd3 {[%clk 0:02:09]} 19. Rxd3 {[%clk 0:02:34]}  f5 {[%clk 0:02:07]} 20. Rfd1 {[%clk 0:02:32]}  Nf6 {[%clk 0:01:43]} 21. d5 {[%clk 0:02:11]}  cxd5 {[%clk 0:01:39]} 22. cxd5 {[%clk 0:02:11]}  Nxd5 {[%clk 0:01:36]} 23. Rxd5 {[%clk 0:02:02]}  Rxg3 {[%clk 0:01:23]} 24. Qb5+ {[%clk 0:01:41]}  Qc6 {[%clk 0:00:52]} 25. fxg3 {[%clk 0:01:19]}  exd5 {[%clk 0:00:44]} 26. Rxd5 {[%clk 0:01:20]}  Qxb5 {[%clk 0:00:37]} 27. Rxb5 {[%clk 0:01:20]}  O-O-O {[%clk 0:00:17]} 28. Rxf5 {[%clk 0:01:17]}  Rd7 {[%clk 0:00:06]} 29. Ne5 {[%clk 0:01:13]}  Bc5+ {[%clk 0:00:05]} 30. Kh2 {[%clk 0:01:12]}  Rd1 {[%clk 0:00:03]} 31. h4 {[%clk 0:01:10]}  Bd6 {[%clk 0:00:02]} 32. Nxf7 {[%clk 0:01:06]}  Bc7 {[%clk 0:00:01]} 33. Ng5 {[%clk 0:01:02]}  Rd3 {[%clk 0:00:01]} 34. Rf8+ {[%clk 0:00:58]}  Kd7 {[%clk 0:00:01]} 35. Rf7+ {[%clk 0:00:57]}  Kc6 {[%clk 0:00:01]} 36. Nf3 {[%clk 0:00:52]} 1-0


[Site "https://www.chess.com"]

[Event "Titled Tuesday Blitz April 12 Late 2022"]
[White "Suarez Uriel, Adrian"]
[Black "Suder, Jakub"]
[WhiteFideId "22230874"]
[BlackFideId "1195310"]
[WhiteElo "2444"]
[BlackElo "2635"]
[Result "0-1"]
[Round "03"]
[TimeControl "180+1"]
[Date "2022.04.13"]
[WhiteClock "0:01:50"]
[BlackClock "0:02:00"]

1. e4 {[%clk 0:03:00]}  c5 {[%clk 0:02:58]} 2. Ne2 {[%clk 0:02:54]}  Nc6 {[%clk 0:02:39]} 3. d4 {[%clk 0:02:54]}  cxd4 {[%clk 0:02:37]} 4. Nxd4 {[%clk 0:02:55]}  Nf6 {[%clk 0:02:37]} 5. Nc3 {[%clk 0:02:54]}  e6 {[%clk 0:02:16]} 6. a3 {[%clk 0:02:53]}  Bc5 {[%clk 0:02:14]} 7. Be3 {[%clk 0:02:52]}  Qb6 {[%clk 0:02:15]} 8. Na4 {[%clk 0:02:38]}  Qa5+ {[%clk 0:02:15]} 9. c3 {[%clk 0:02:37]}  Bxd4 {[%clk 0:02:12]} 10. Bxd4 {[%clk 0:02:36]}  Nxd4 {[%clk 0:02:12]} 11. Qxd4 {[%clk 0:02:35]}  O-O {[%clk 0:02:11]} 12. Bd3 {[%clk 0:02:25]}  d5 {[%clk 0:02:11]} 13. e5 {[%clk 0:02:23]}  Ne4 {[%clk 0:02:06]} 14. Bxe4 {[%clk 0:02:20]}  dxe4 {[%clk 0:02:07]} 15. Qxe4 {[%clk 0:02:20]}  Bd7 {[%clk 0:02:07]} 16. Qxb7 {[%clk 0:01:53]}  Qxe5+ {[%clk 0:02:01]} 17. Kf1 {[%clk 0:01:50]}  Bxa4 {[%clk 0:02:01]} 18. Re1 {[%clk 0:01:50]}  Bb5+ {[%clk 0:02:00]} 0-1


[Site "https://www.chess.com"]

[Event "Titled Tuesday Blitz April 12 Late 2022"]
[White "Svane, Rasmus"]
[Black "Tregubov, Pavel V."]
[WhiteFideId "4657101"]
[BlackFideId "4115341"]
[WhiteElo "2645"]
[BlackElo "2341"]
[Result "1-0"]
[Round "03"]
[TimeControl "180+1"]
[Date "2022.04.12"]
[WhiteClock "0:02:20"]
[BlackClock "0:01:26"]

1. Nf3 {[%clk 0:03:00]}  c5 {[%clk 0:02:58]} 2. c4 {[%clk 0:03:00]}  Nc6 {[%clk 0:02:56]} 3. Nc3 {[%clk 0:03:01]}  Nf6 {[%clk 0:02:57]} 4. e3 {[%clk 0:02:59]}  e6 {[%clk 0:02:57]} 5. d4 {[%clk 0:02:59]}  d5 {[%clk 0:02:57]} 6. cxd5 {[%clk 0:02:57]}  exd5 {[%clk 0:02:57]} 7. Bb5 {[%clk 0:02:56]}  Bd6 {[%clk 0:02:58]} 8. O-O {[%clk 0:02:54]}  O-O {[%clk 0:02:58]} 9. dxc5 {[%clk 0:02:54]}  Bxc5 {[%clk 0:02:57]} 10. b3 {[%clk 0:02:55]}  Bg4 {[%clk 0:02:55]} 11. Bb2 {[%clk 0:02:55]}  d4 {[%clk 0:02:44]} 12. Na4 {[%clk 0:02:52]}  Bd6 {[%clk 0:02:25]} 13. Bxc6 {[%clk 0:02:50]}  bxc6 {[%clk 0:02:25]} 14. Qxd4 {[%clk 0:02:48]}  Bxf3 {[%clk 0:02:22]} 15. gxf3 {[%clk 0:02:49]}  Qe7 {[%clk 0:02:19]} 16. Kh1 {[%clk 0:02:46]}  Rfd8 {[%clk 0:02:14]} 17. Rg1 {[%clk 0:02:42]}  Bg3 {[%clk 0:01:39]} 18. Qc3 {[%clk 0:02:22]}  Bh4 {[%clk 0:01:26]} 19. Rg4 {[%clk 0:02:20]} 1-0


[Site "https://www.chess.com"]

[Event "Titled Tuesday Blitz April 12 Late 2022"]
[White "Tari, Aryan"]
[Black "Riff, Vincent"]
[WhiteFideId "1510045"]
[BlackFideId "617776"]
[WhiteElo "2567"]
[BlackElo "2377"]
[Result "1-0"]
[Round "03"]
[TimeControl "180+1"]
[Date "2022.04.12"]
[WhiteClock "0:00:07"]
[BlackClock "0:00:12"]

1. e3 {[%clk 0:02:46]}  d5 {[%clk 0:00:10]} 2. Nf3 {[%clk 0:00:11]}  Nf6 {[%clk 0:00:11]} 3. c4 {[%clk 0:00:12]}  e6 {[%clk 0:00:12]} 4. Nc3 {[%clk 0:00:12]}  Be7 {[%clk 0:00:13]} 5. d4 {[%clk 0:00:13]}  O-O {[%clk 0:00:14]} 6. Bd3 {[%clk 0:00:14]}  dxc4 {[%clk 0:00:14]} 7. Bxc4 {[%clk 0:00:14]}  c5 {[%clk 0:00:15]} 8. O-O {[%clk 0:00:14]}  cxd4 {[%clk 0:00:16]} 9. exd4 {[%clk 0:00:15]}  Nc6 {[%clk 0:00:16]} 10. Qe2 {[%clk 0:00:15]}  Bd7 {[%clk 0:00:17]} 11. Rd1 {[%clk 0:00:15]}  Rc8 {[%clk 0:00:17]} 12. h3 {[%clk 0:00:15]}  Na5 {[%clk 0:00:17]} 13. Bd3 {[%clk 0:00:15]}  b5 {[%clk 0:00:17]} 14. Ne5 {[%clk 0:00:15]}  b4 {[%clk 0:00:17]} 15. Ne4 {[%clk 0:00:15]}  Nxe4 {[%clk 0:00:17]} 16. Qxe4 {[%clk 0:00:16]}  f5 {[%clk 0:00:17]} 17. Qe2 {[%clk 0:00:15]}  Bc6 {[%clk 0:00:17]} 18. Nxc6 {[%clk 0:00:15]}  Nxc6 {[%clk 0:00:17]} 19. Qxe6+ {[%clk 0:00:14]}  Kh8 {[%clk 0:00:18]} 20. d5 {[%clk 0:00:13]}  Nd4 {[%clk 0:00:18]} 21. Qe1 {[%clk 0:00:09]}  Nc2 {[%clk 0:00:18]} 22. Bxc2 {[%clk 0:00:09]}  Rxc2 {[%clk 0:00:19]} 23. Bf4 {[%clk 0:00:09]}  Bc5 {[%clk 0:00:19]} 24. Rd2 {[%clk 0:00:07]}  b3 {[%clk 0:00:14]} 25. Rxc2 {[%clk 0:00:07]}  bxc2 {[%clk 0:00:15]} 26. Qd2 {[%clk 0:00:07]}  h6 {[%clk 0:00:11]} 27. Rc1 {[%clk 0:00:07]}  Bd6 {[%clk 0:00:10]} 28. Bxd6 {[%clk 0:00:07]}  Qxd6 {[%clk 0:00:10]} 29. Rxc2 {[%clk 0:00:07]}  Rd8 {[%clk 0:00:11]} 30. g3 {[%clk 0:00:06]}  Qxd5 {[%clk 0:00:11]} 31. Qxd5 {[%clk 0:00:05]}  Rxd5 {[%clk 0:00:12]} 32. Rc7 {[%clk 0:00:06]}  a5 {[%clk 0:00:12]} 33. Rb7 {[%clk 0:00:05]}  Rd2 {[%clk 0:00:11]} 34. Kg2 {[%clk 0:00:05]}  Rc2 {[%clk 0:00:12]} 35. Kf3 {[%clk 0:00:05]}  g5 {[%clk 0:00:12]} 36. Ke3 {[%clk 0:00:05]}  Kg8 {[%clk 0:00:12]} 37. a4 {[%clk 0:00:04]}  Rc4 {[%clk 0:00:12]} 38. b3 {[%clk 0:00:04]}  Rc2 {[%clk 0:00:12]} 39. Rb5 {[%clk 0:00:04]}  f4+ {[%clk 0:00:11]} 40. gxf4 {[%clk 0:00:04]}  gxf4+ {[%clk 0:00:12]} 41. Kf3 {[%clk 0:00:04]}  Rc3+ {[%clk 0:00:12]} 42. Kxf4 {[%clk 0:00:04]}  Rxh3 {[%clk 0:00:13]} 43. f3 {[%clk 0:00:05]}  Rh4+ {[%clk 0:00:13]} 44. Ke3 {[%clk 0:00:05]}  Rh1 {[%clk 0:00:13]} 45. Rxa5 {[%clk 0:00:05]}  h5 {[%clk 0:00:13]} 46. Kf4 {[%clk 0:00:04]}  h4 {[%clk 0:00:14]} 47. Kg4 {[%clk 0:00:05]}  h3 {[%clk 0:00:15]} 48. Kg3 {[%clk 0:00:06]}  Kf7 {[%clk 0:00:14]} 49. Rh5 {[%clk 0:00:05]}  Rb1 {[%clk 0:00:13]} 50. Rb5 {[%clk 0:00:06]}  Rh1 {[%clk 0:00:13]} 51. a5 {[%clk 0:00:06]}  Ke6 {[%clk 0:00:14]} 52. a6 {[%clk 0:00:06]}  Kd7 {[%clk 0:00:12]} 53. Ra5 {[%clk 0:00:06]}  Kc7 {[%clk 0:00:12]} 54. a7 {[%clk 0:00:06]}  Rg1+ {[%clk 0:00:12]} 55. Kxh3 {[%clk 0:00:06]}  Rg8 {[%clk 0:00:12]} 56. a8=Q {[%clk 0:00:07]} 1-0


[Site "https://www.chess.com"]

[Event "Titled Tuesday Blitz April 12 Late 2022"]
[White "Volkov, Maksim"]
[Black "Skatchkov, Valery"]
[WhiteFideId "54123070"]
[BlackFideId "24195812"]
[WhiteElo "2648"]
[BlackElo "2465"]
[Result "1-0"]
[Round "03"]
[TimeControl "180+1"]
[Date "2022.04.13"]
[WhiteClock "0:00:48"]
[BlackClock "0:00:03"]

1. d4 {[%clk 0:03:00]}  d5 {[%clk 0:02:55]} 2. c4 {[%clk 0:03:01]}  Nc6 {[%clk 0:02:55]} 3. Nc3 {[%clk 0:02:51]}  e5 {[%clk 0:02:38]} 4. cxd5 {[%clk 0:02:45]}  Nxd4 {[%clk 0:02:38]} 5. e3 {[%clk 0:02:43]}  Nf5 {[%clk 0:02:38]} 6. Nf3 {[%clk 0:02:42]}  Bd6 {[%clk 0:02:29]} 7. e4 {[%clk 0:02:42]}  Nfe7 {[%clk 0:02:29]} 8. Bc4 {[%clk 0:02:39]}  a6 {[%clk 0:02:29]} 9. a4 {[%clk 0:02:38]}  f5 {[%clk 0:02:24]} 10. O-O {[%clk 0:02:37]}  Nf6 {[%clk 0:02:24]} 11. Re1 {[%clk 0:02:33]}  O-O {[%clk 0:02:15]} 12. exf5 {[%clk 0:02:27]}  Bxf5 {[%clk 0:02:15]} 13. Nxe5 {[%clk 0:02:24]}  Ng6 {[%clk 0:01:37]} 14. Nxg6 {[%clk 0:02:16]}  Bxg6 {[%clk 0:01:38]} 15. Bg5 {[%clk 0:02:14]}  Qd7 {[%clk 0:01:38]} 16. h3 {[%clk 0:02:12]}  Qf5 {[%clk 0:01:37]} 17. Be3 {[%clk 0:02:08]}  Rae8 {[%clk 0:01:20]} 18. Bd4 {[%clk 0:02:03]}  Qf4 {[%clk 0:01:13]} 19. Re6 {[%clk 0:01:24]}  Qh2+ {[%clk 0:01:02]} 20. Kf1 {[%clk 0:01:24]}  Bh5 {[%clk 0:01:03]} 21. f3 {[%clk 0:01:21]}  Qh1+ {[%clk 0:00:33]} 22. Kf2 {[%clk 0:01:19]}  Qh2 {[%clk 0:00:33]} 23. Ne2 {[%clk 0:01:13]}  Ne4+ {[%clk 0:00:25]} 24. Ke3 {[%clk 0:01:10]}  Qxg2 {[%clk 0:00:05]} 25. Ng1 {[%clk 0:01:09]}  Ng5 {[%clk 0:00:02]} 26. Qf1 {[%clk 0:01:04]}  Qg3 {[%clk 0:00:01]} 27. Re1 {[%clk 0:00:55]}  Nxf3 {[%clk 0:00:02]} 28. Ne2 {[%clk 0:00:49]}  Nxe1+ {[%clk 0:00:01]} 29. Nxg3 {[%clk 0:00:49]}  Rxf1 {[%clk 0:00:01]} 30. Nxf1 {[%clk 0:00:50]}  Ng2+ {[%clk 0:00:01]} 31. Kf2 {[%clk 0:00:48]}  Rf8+ {[%clk 0:00:02]} 32. Kxg2 {[%clk 0:00:48]}  Bf3+ {[%clk 0:00:03]} 33. Kg1 {[%clk 0:00:48]}  Bg3 {[%clk 0:00:03]} 34. Nxg3 {[%clk 0:00:48]} 1-0


[Site "https://www.chess.com"]

[Event "Titled Tuesday Blitz April 12 Late 2022"]
[White "Xiong, Jeffery"]
[Black "Ozates, Tuna"]
[WhiteFideId "2047640"]
[BlackFideId "6354521"]
[WhiteElo "2727"]
[BlackElo "1887"]
[Result "1-0"]
[Round "03"]
[TimeControl "180+1"]
[Date "2022.04.12"]
[WhiteClock "0:00:57"]
[BlackClock "0:00:12"]

1. d4 {[%clk 0:03:00]}  Nf6 {[%clk 0:02:56]} 2. c4 {[%clk 0:03:01]}  c6 {[%clk 0:02:55]} 3. Bf4 {[%clk 0:02:55]}  d5 {[%clk 0:02:55]} 4. cxd5 {[%clk 0:02:56]}  cxd5 {[%clk 0:02:53]} 5. e3 {[%clk 0:02:56]}  Nc6 {[%clk 0:02:53]} 6. Nc3 {[%clk 0:02:56]}  a6 {[%clk 0:02:52]} 7. Be2 {[%clk 0:02:55]}  Qb6 {[%clk 0:02:41]} 8. Na4 {[%clk 0:02:40]}  Qa5+ {[%clk 0:02:29]} 9. Kf1 {[%clk 0:02:41]}  e5 {[%clk 0:02:12]} 10. dxe5 {[%clk 0:02:41]}  Ne4 {[%clk 0:02:12]} 11. Nf3 {[%clk 0:02:41]}  b5 {[%clk 0:02:12]} 12. Qxd5 {[%clk 0:02:38]}  Bb7 {[%clk 0:02:02]} 13. e6 {[%clk 0:02:36]}  fxe6 {[%clk 0:01:50]} 14. Qxe4 {[%clk 0:02:36]}  Nd8 {[%clk 0:01:31]} 15. Qd3 {[%clk 0:02:17]}  bxa4 {[%clk 0:01:25]} 16. Ne5 {[%clk 0:02:17]}  Qd5 {[%clk 0:01:24]} 17. Bh5+ {[%clk 0:02:17]}  g6 {[%clk 0:01:20]} 18. Qxd5 {[%clk 0:02:01]}  Bxd5 {[%clk 0:01:16]} 19. Bd1 {[%clk 0:02:02]}  a3 {[%clk 0:01:09]} 20. Ba4+ {[%clk 0:02:02]}  Ke7 {[%clk 0:01:09]} 21. bxa3 {[%clk 0:01:52]}  Kf6 {[%clk 0:00:54]} 22. Rc1 {[%clk 0:01:41]}  Bxa3 {[%clk 0:00:53]} 23. Rc7 {[%clk 0:01:40]}  g5 {[%clk 0:00:37]} 24. Nd7+ {[%clk 0:01:22]}  Kg6 {[%clk 0:00:37]} 25. Bc2+ {[%clk 0:01:20]}  Kh6 {[%clk 0:00:37]} 26. Be5 {[%clk 0:01:18]}  Nf7 {[%clk 0:00:14]} 27. h4 {[%clk 0:01:11]}  g4 {[%clk 0:00:11]} 28. Bxh8 {[%clk 0:01:00]}  Nxh8 {[%clk 0:00:12]} 29. Nf6 {[%clk 0:00:57]} 1-0


[Site "https://www.chess.com"]

[Event "Titled Tuesday Blitz April 12 Late 2022"]
[White "Xu, Yi"]
[Black "Martinez Reyes, Pedro Ramon"]
[WhiteFideId "8605564"]
[BlackFideId "3901807"]
[WhiteElo "2783"]
[BlackElo "2515"]
[Result "1-0"]
[Round "03"]
[TimeControl "180+1"]
[Date "2022.04.13"]
[WhiteClock "0:00:53"]
[BlackClock "0:00:59"]

1. e4 {[%clk 0:02:55]}  c5 {[%clk 0:02:58]} 2. Nf3 {[%clk 0:02:54]}  Nc6 {[%clk 0:02:59]} 3. Bb5 {[%clk 0:02:53]}  g6 {[%clk 0:02:54]} 4. O-O {[%clk 0:02:53]}  Bg7 {[%clk 0:02:54]} 5. Re1 {[%clk 0:02:52]}  Nf6 {[%clk 0:02:53]} 6. c3 {[%clk 0:02:51]}  O-O {[%clk 0:02:53]} 7. h3 {[%clk 0:02:51]}  Qb6 {[%clk 0:02:47]} 8. a4 {[%clk 0:02:48]}  d6 {[%clk 0:02:46]} 9. d4 {[%clk 0:02:45]}  cxd4 {[%clk 0:02:43]} 10. cxd4 {[%clk 0:02:45]}  d5 {[%clk 0:02:44]} 11. e5 {[%clk 0:02:42]}  Ne4 {[%clk 0:02:44]} 12. Nc3 {[%clk 0:02:41]}  Be6 {[%clk 0:02:29]} 13. Be3 {[%clk 0:02:37]}  Rac8 {[%clk 0:02:25]} 14. Nxe4 {[%clk 0:02:28]}  dxe4 {[%clk 0:02:25]} 15. d5 {[%clk 0:02:29]}  Qa5 {[%clk 0:02:17]} 16. Ng5 {[%clk 0:02:11]}  Rfd8 {[%clk 0:02:09]} 17. Bd2 {[%clk 0:02:01]}  Rxd5 {[%clk 0:01:47]} 18. Bxa5 {[%clk 0:02:01]}  Rxd1 {[%clk 0:01:47]} 19. Raxd1 {[%clk 0:01:52]}  Bb3 {[%clk 0:01:43]} 20. Bxc6 {[%clk 0:01:45]}  Bxd1 {[%clk 0:01:43]} 21. Rxd1 {[%clk 0:01:44]}  bxc6 {[%clk 0:01:39]} 22. Nxe4 {[%clk 0:01:43]}  Bxe5 {[%clk 0:01:39]} 23. Bc3 {[%clk 0:01:43]}  Bxc3 {[%clk 0:01:35]} 24. Nxc3 {[%clk 0:01:43]}  Rb8 {[%clk 0:01:34]} 25. Rd2 {[%clk 0:01:43]}  Rb4 {[%clk 0:01:34]} 26. Kf1 {[%clk 0:01:43]}  e5 {[%clk 0:01:34]} 27. Ke2 {[%clk 0:01:43]}  f5 {[%clk 0:01:34]} 28. f3 {[%clk 0:01:41]}  Kf7 {[%clk 0:01:34]} 29. Kd3 {[%clk 0:01:38]}  Ke6 {[%clk 0:01:34]} 30. Kc2 {[%clk 0:01:37]}  Rb8 {[%clk 0:01:29]} 31. b3 {[%clk 0:01:33]}  h5 {[%clk 0:01:29]} 32. a5 {[%clk 0:01:31]}  g5 {[%clk 0:01:26]} 33. Na4 {[%clk 0:01:20]}  Rb5 {[%clk 0:01:24]} 34. a6 {[%clk 0:01:20]}  g4 {[%clk 0:01:20]} 35. hxg4 {[%clk 0:01:19]}  hxg4 {[%clk 0:01:21]} 36. Kc3 {[%clk 0:01:17]}  g3 {[%clk 0:01:17]} 37. b4 {[%clk 0:01:16]}  Rd5 {[%clk 0:01:15]} 38. Nc5+ {[%clk 0:01:15]}  Kd6 {[%clk 0:01:14]} 39. Rxd5+ {[%clk 0:01:06]}  cxd5 {[%clk 0:01:08]} 40. Kd3 {[%clk 0:01:07]}  Kc6 {[%clk 0:01:06]} 41. Ke3 {[%clk 0:01:00]}  f4+ {[%clk 0:01:01]} 42. Kd2 {[%clk 0:00:56]}  Kb5 {[%clk 0:01:00]} 43. Nd3 {[%clk 0:00:56]}  Kxa6 {[%clk 0:00:58]} 44. Nxe5 {[%clk 0:00:56]}  Kb5 {[%clk 0:00:59]} 45. Kc3 {[%clk 0:00:53]}  d4+ {[%clk 0:00:56]} 46. Kxd4 {[%clk 0:00:51]}  Kxb4 {[%clk 0:00:57]} 47. Nc6+ {[%clk 0:00:51]}  Kb3 {[%clk 0:00:57]} 48. Nxa7 {[%clk 0:00:52]}  Kc2 {[%clk 0:00:58]} 49. Ke4 {[%clk 0:00:52]}  Kd2 {[%clk 0:00:59]} 50. Kxf4 {[%clk 0:00:52]}  Ke2 {[%clk 0:00:59]} 51. Kxg3 {[%clk 0:00:53]} 1-0


[Site "https://www.chess.com"]

[Event "Titled Tuesday Blitz April 12 Late 2022"]
[White "Yanchenko, Roman"]
[Black "Sjugirov, Sanan"]
[WhiteFideId "4137329"]
[BlackFideId "4189302"]
[WhiteElo "2514"]
[BlackElo "2602"]
[Result "1-0"]
[Round "03"]
[TimeControl "180+1"]
[Date "2022.04.12"]
[WhiteClock "0:00:07"]
[BlackClock "0:00:05"]

1. d4 {[%clk 0:03:00]}  Nf6 {[%clk 0:02:59]} 2. c4 {[%clk 0:03:01]}  e6 {[%clk 0:02:59]} 3. Nf3 {[%clk 0:03:01]}  d5 {[%clk 0:02:58]} 4. Nc3 {[%clk 0:03:02]}  c6 {[%clk 0:02:56]} 5. Bg5 {[%clk 0:03:02]}  Nbd7 {[%clk 0:02:55]} 6. e3 {[%clk 0:03:02]}  h6 {[%clk 0:02:54]} 7. Bh4 {[%clk 0:03:02]}  Be7 {[%clk 0:02:54]} 8. Qc2 {[%clk 0:03:02]}  O-O {[%clk 0:02:54]} 9. Rd1 {[%clk 0:03:01]}  b6 {[%clk 0:02:52]} 10. cxd5 {[%clk 0:03:01]}  cxd5 {[%clk 0:02:47]} 11. Bd3 {[%clk 0:02:57]}  Bb7 {[%clk 0:02:46]} 12. O-O {[%clk 0:02:58]}  Rc8 {[%clk 0:02:44]} 13. Qb1 {[%clk 0:02:58]}  a6 {[%clk 0:02:40]} 14. Rc1 {[%clk 0:02:55]}  b5 {[%clk 0:02:38]} 15. h3 {[%clk 0:02:51]}  Bd6 {[%clk 0:02:30]} 16. a4 {[%clk 0:02:46]}  b4 {[%clk 0:02:30]} 17. Ne2 {[%clk 0:02:45]}  Qb6 {[%clk 0:02:18]} 18. Bg3 {[%clk 0:02:42]}  a5 {[%clk 0:01:58]} 19. Rxc8 {[%clk 0:02:29]}  Rxc8 {[%clk 0:01:57]} 20. Rc1 {[%clk 0:02:29]}  Rxc1+ {[%clk 0:01:53]} 21. Qxc1 {[%clk 0:02:30]}  Bxg3 {[%clk 0:01:47]} 22. fxg3 {[%clk 0:02:27]}  Qd6 {[%clk 0:01:44]} 23. Bb5 {[%clk 0:02:16]}  Kf8 {[%clk 0:01:19]} 24. g4 {[%clk 0:02:15]}  Ke7 {[%clk 0:01:18]} 25. Nf4 {[%clk 0:02:12]}  Nb8 {[%clk 0:00:35]} 26. Ne5 {[%clk 0:02:04]}  g5 {[%clk 0:00:35]} 27. Nfd3 {[%clk 0:02:01]}  Ne4 {[%clk 0:00:34]} 28. Nf2 {[%clk 0:01:35]}  Nxf2 {[%clk 0:00:31]} 29. Kxf2 {[%clk 0:01:36]}  f6 {[%clk 0:00:31]} 30. Nd3 {[%clk 0:01:14]}  Bc6 {[%clk 0:00:28]} 31. Nc5 {[%clk 0:01:02]}  Bxb5 {[%clk 0:00:17]} 32. axb5 {[%clk 0:01:03]}  Qc7 {[%clk 0:00:15]} 33. Qc2 {[%clk 0:01:02]}  Nd7 {[%clk 0:00:06]} 34. Qh7+ {[%clk 0:00:39]}  Kd6 {[%clk 0:00:06]} 35. b6 {[%clk 0:00:38]}  Nxb6 {[%clk 0:00:06]} 36. Nb7+ {[%clk 0:00:37]}  Kc6 {[%clk 0:00:04]} 37. Nxa5+ {[%clk 0:00:37]}  Kd6 {[%clk 0:00:05]} 38. Qxh6 {[%clk 0:00:32]}  Qc2+ {[%clk 0:00:03]} 39. Kg3 {[%clk 0:00:32]}  Qe2 {[%clk 0:00:02]} 40. Qf8+ {[%clk 0:00:31]}  Kc7 {[%clk 0:00:02]} 41. Qe7+ {[%clk 0:00:22]}  Nd7 {[%clk 0:00:02]} 42. Qxe6 {[%clk 0:00:22]}  Qe1+ {[%clk 0:00:02]} 43. Kh2 {[%clk 0:00:22]}  Qf2 {[%clk 0:00:02]} 44. Qc6+ {[%clk 0:00:17]}  Kd8 {[%clk 0:00:02]} 45. Nb7+ {[%clk 0:00:15]}  Ke7 {[%clk 0:00:02]} 46. Qd6+ {[%clk 0:00:15]}  Ke8 {[%clk 0:00:03]} 47. Qe6+ {[%clk 0:00:15]}  Kf8 {[%clk 0:00:03]} 48. Qxd7 {[%clk 0:00:16]}  Qxe3 {[%clk 0:00:04]} 49. Qd6+ {[%clk 0:00:15]}  Kf7 {[%clk 0:00:04]} 50. Qc7+ {[%clk 0:00:14]}  Kg6 {[%clk 0:00:04]} 51. Nd8 {[%clk 0:00:13]}  Qxd4 {[%clk 0:00:02]} 52. Ne6 {[%clk 0:00:06]}  Qe5+ {[%clk 0:00:01]} 53. Qxe5 {[%clk 0:00:06]}  fxe5 {[%clk 0:00:02]} 54. Kg3 {[%clk 0:00:06]}  Kf6 {[%clk 0:00:03]} 55. Nc7 {[%clk 0:00:06]}  d4 {[%clk 0:00:03]} 56. Nd5+ {[%clk 0:00:06]}  Ke6 {[%clk 0:00:04]} 57. Nxb4 {[%clk 0:00:07]}  e4 {[%clk 0:00:05]} 58. Kf2 {[%clk 0:00:07]}  Kd6 {[%clk 0:00:05]} 59. Ke2 {[%clk 0:00:06]}  Kc5 {[%clk 0:00:05]} 60. Nc2 {[%clk 0:00:04]}  d3+ {[%clk 0:00:05]} 61. Kd2 {[%clk 0:00:04]}  dxc2 {[%clk 0:00:05]} 62. Kxc2 {[%clk 0:00:05]}  Kd4 {[%clk 0:00:06]} 63. Kd2 {[%clk 0:00:05]}  Kd5 {[%clk 0:00:04]} 64. Ke3 {[%clk 0:00:06]}  Ke5 {[%clk 0:00:05]} 65. g3 {[%clk 0:00:07]} 1-0


[Site "https://www.chess.com"]